bitfinex/quotes_ETHUSD_20250903
["timestamp","ask_amount","ask_price","bid_price","bid_amount"]
[1756933049696,0.09760483,4472.5,4472.4,7.24803596]
[1756933049873,0.09760483,4472.5,4472.4,6.34573596]
[1756933050390,0.09760483,4472.5,4472.4,7.28113596]
[1756933050590,0.002,4472.5,4472.4,8.40475222]
[1756933053609,0.002,4472.5,4472.4,9.19675222]
[1756933065428,0.002,4472.5,4472.4,1.23561626]
[1756933065429,0.3064,4472.5,4472.4,1.23561626]
[1756933065637,0.3064,4472.5,4472.4,6.05693596]
[1756933065802,0.4064,4472.5,4472.4,6.05693596]
[1756933066610,0.8512,4472.5,4472.4,6.05693596]
[1756933068687,0.4064,4472.5,4472.4,6.05693596]
[1756933071722,0.102,4472.5,4472.4,6.36873596]
[1756933071896,0.4064,4472.5,4472.4,6.05693596]
[1756933074295,0.002,4472.5,4472.4,7.36993298]
[1756933078503,0.002,4472.5,4472.4,7.05813298]
[1756933080915,0.002,4472.5,4472.4,3.34913298]
[1756933081115,0.7822,4472.5,4472.4,3.82]
[1756933081314,1.2458,4472.5,4472.4,3.82]
[1756933082738,0.7733,4472.5,4472.4,3.82]
[1756933082939,0.7733,4472.5,4472.4,6.05593596]
[1756933083443,0.7733,4472.5,4472.4,3.82]
[1756933084346,0.7733,4472.5,4472.4,6.05593596]
[1756933084512,1.2458,4472.5,4472.4,3.82]
[1756933085257,0.7733,4472.5,4472.4,6.05593596]
[1756933085421,0.3097,4472.5,4472.4,6.05593596]
[1756933086348,0.3097,4472.5,4472.4,3.82]
[1756933087016,0.3097,4472.5,4472.4,6.05593596]
[1756933088542,0.002,4472.5,4472.4,6.05593596]
[1756933088750,0.3097,4472.5,4472.4,3.82]
[1756933088950,0.7733,4472.5,4472.4,3.82]
[1756933089539,0.3097,4472.5,4472.4,3.82]
[1756933091334,0.3097,4472.5,4472.4,5.539]
[1756933097263,0.7822,4472.5,4472.4,5.539]
[1756933097566,1.2458,4472.5,4472.4,5.539]
[1756933098460,0.7733,4472.5,4472.4,5.539]
[1756933099529,0.7733,4472.5,4472.3,1e-08]
[1756933099530,1.67116873,4472.5,4472.3,1e-08]
[1756933099765,1.67116873,4472.5,4472.3,3.02100001]
[1756933099766,2.34793596,4472.4,4472.3,3.02100001]
[1756933100063,3.59173596,4472.4,4472.3,3.02100001]
[1756933101073,3.59173596,4472.4,4472.3,3.70800001]
[1756933101366,4.80045811,4472.4,4472.3,3.70800001]
[1756933110488,4.32795811,4472.4,4472.3,3.70800001]
[1756933110792,3.11923596,4472.4,4472.3,3.70800001]
[1756933112297,2.65563596,4472.4,4472.3,3.70800001]
[1756933112992,2.65563596,4472.4,4472.3,1e-08]
[1756933113200,3.08503596,4472.4,4472.3,1e-08]
[1756933114180,2.65563596,4472.4,4472.3,1e-08]
[1756933116303,3.30225617,4472.4,4472.3,1e-08]
[1756933119817,2.99455617,4472.4,4472.3,1e-08]
[1756933119994,2.99455617,4472.4,4472.3,1.24940001]
[1756933119995,2.34793596,4472.4,4472.3,1.24940001]
[1756933120396,2.34793596,4472.4,4472.3,0.75940001]
[1756933120728,2.34793596,4472.4,4472.3,0.28870001]
[1756933121685,2.63633596,4472.4,4472.3,1e-08]
[1756933127878,2.34793596,4472.4,4472.3,1e-08]
[1756933129416,0.112,4472.4,4472.3,0.77870001]
[1756933129623,0.112,4472.4,4472.3,1.24940001]
[1756933130128,2.34793596,4472.4,4472.3,1.24940001]
[1756933130694,2.63633596,4472.4,4472.3,1e-08]
[1756933130920,3.98132401,4472.4,4472.3,1e-08]
[1756933131121,4.4386732,4472.4,4472.3,1e-08]
[1756933131424,4.41072401,4472.4,4472.3,1e-08]
[1756933132030,4.09138152,4472.4,4472.3,1e-08]
[1756933133927,7.82833071,4472.4,4472.3,1e-08]
[1756933134117,8.11972401,4472.4,4472.3,1e-08]
[1756933135715,13.27967468,4472.4,4472.3,1e-08]
[1756933141330,16.31487468,4472.4,4472.3,1e-08]
[1756933142116,15.84387468,4472.4,4472.3,1e-08]
[1756933142440,15.05993219,4472.4,4472.3,1e-08]
[1756933143532,9.89998152,4472.4,4472.3,1e-08]
[1756933144802,9.61158152,4472.4,4472.3,1e-08]
[1756933145001,9.61158152,4472.4,4472.3,0.31600001]
[1756933145230,9.61158152,4472.4,4472.3,1.26470001]
[1756933145541,9.61158152,4472.4,4472.3,0.31600001]
[1756933145839,5.90258152,4472.4,4472.3,1.26470001]
[1756933146256,5.90258152,4472.4,4472.3,0.78030001]
[1756933146556,5.90258152,4472.4,4472.3,0.31600001]
[1756933146860,5.90258152,4472.4,4472.3,1e-08]
[1756933147058,5.90258152,4472.4,4472.3,0.31600001]
[1756933147259,5.90258152,4472.4,4472.3,1.26470001]
[1756933147628,5.90258152,4472.4,4472.3,0.31600001]
[1756933148451,6.68338152,4472.4,4472.3,1e-08]
[1756933148645,6.21878152,4472.4,4472.3,1e-08]
[1756933149166,5.90258152,4472.4,4472.3,1e-08]
[1756933149369,6.21878152,4472.4,4472.3,1e-08]
[1756933149532,6.68338152,4472.4,4472.3,1e-08]
[1756933151446,10.39238152,4472.4,4472.3,1e-08]
[1756933154182,10.85698152,4472.4,4472.3,1e-08]
[1756933158893,2.23633598,4471.6,4471.5,0.001]
[1756933159097,5.94533598,4471.6,4471.5,0.001]
[1756933159274,5.94533598,4471.6,4471.5,1.2657]
[1756933159275,2.34833598,4471.6,4471.5,1.2657]
[1756933159589,6.52563598,4471.6,4471.5,1.2657]
[1756933160655,2.81263598,4471.6,4471.5,1.2657]
[1756933161318,6.52563598,4471.6,4471.5,1.2657]
[1756933161762,2.81263598,4471.6,4471.5,1.2657]
[1756933161964,6.52563598,4471.6,4471.5,1.2657]
[1756933164565,2.81263598,4471.6,4471.5,1.2657]
[1756933165584,2.236386,4471.5,4470.7,0.112]
[1756933165974,3.6444741,4471.5,4470.7,0.112]
[1756933166178,3.7564741,4471.5,4470.7,0.112]
[1756933166684,4.2210741,4471.5,4470.7,0.112]
[1756933167594,4.2210741,4471.5,4470.7,0.5964]
[1756933168392,2.348386,4471.5,4470.9,0.4844]
[1756933170256,2.348386,4471.5,4471.4,1.2403]
[1756933171090,0.112,4471.5,4471.4,1.2403]
[1756933171885,2.348386,4471.5,4471.4,1.2403]
[1756933173595,2.348386,4471.5,4471.4,0.7977]
[1756933175472,2.348386,4471.5,4471.4,0.3113]
[1756933176495,2.658886,4471.5,4471.4,0.001]
[1756933176798,3.131786,4471.5,4471.4,0.001]
[1756933180000,2.658886,4471.5,4471.4,0.001]
[1756933180194,0.112,4471.5,4471.4,0.3113]
[1756933180499,0.112,4471.5,4471.4,0.7977]
[1756933180868,0.112,4471.6,4471.4,1.2403]
[1756933181064,0.112,4471.6,4471.5,0.4864]
[1756933181469,2.90864385,4471.7,4471.5,0.7967]
[1756933181870,2.90864385,4471.7,4471.6,0.4864]
[1756933182174,2.90864385,4471.7,4471.6,0.3103]
[1756933182971,2.23615559,4472.0,4471.6,0.7967]
[1756933183304,2.23620324,4471.9,4471.7,0.929]
[1756933183508,2.72353595,4472.0,4471.9,0.3103]
[1756933184613,0.4874,4472.0,4471.9,0.3103]
[1756933185103,2.72353595,4472.0,4471.9,0.3103]
[1756933185414,0.4874,4472.0,4471.9,0.3103]
[1756933185618,2.72353595,4472.0,4471.9,0.7967]
[1756933186115,0.4874,4472.0,4471.9,0.7967]
[1756933186488,2.23609158,4472.1,4471.9,0.7967]
[1756933186689,0.4874,4472.1,4471.9,0.7967]
[1756933187783,2.72349148,4472.1,4471.9,0.7967]
[1756933187978,2.23613595,4472.0,4471.9,0.7967]
[1756933188319,0.4874,4472.1,4471.9,0.3103]
[1756933189586,2.72349276,4472.1,4471.9,0.3103]
[1756933189982,0.4874,4472.1,4471.9,0.3103]
[1756933190200,2.72349969,4472.1,4471.9,0.3103]
[1756933190421,0.4874,4472.1,4471.9,0.3103]
[1756933190625,2.72349817,4472.1,4471.9,0.3103]
[1756933192119,2.23613595,4472.0,4471.9,0.3103]
[1756933192319,2.23619276,4471.9,4471.6,3.712]
[1756933192489,0.9603,4472.1,4471.6,3.712]
[1756933192690,3.19642181,4472.1,4471.6,3.712]
[1756933193107,2.23614118,4472.0,4471.6,3.712]
[1756933194020,2.90841838,4472.0,4471.6,3.712]
[1756933195095,0.4729,4471.9,4471.6,3.712]
[1756933195298,2.70909519,4471.9,4471.6,3.712]
[1756933195696,2.23619519,4471.9,4471.6,3.712]
[1756933195898,2.908424,4472.0,4471.6,3.712]
[1756933196433,0.6722772,4472.0,4471.6,3.712]
[1756933197823,2.90842382,4472.0,4471.6,3.712]
[1756933198392,0.6722772,4472.0,4471.6,3.712]
[1756933198621,0.6722772,4472.0,4471.6,4.42365373]
[1756933199200,2.90841538,4472.0,4471.6,4.42365373]
[1756933199909,2.90841538,4472.0,4471.9,0.2871]
[1756933200223,2.90841538,4472.0,4471.6,6.14265373]
[1756933200529,3.35931538,4472.0,4471.6,6.14265373]
[1756933202029,1.1231772,4472.0,4471.6,6.14265373]
[1756933202433,0.6722772,4472.0,4471.9,0.2871]
[1756933202594,0.002,4472.1,4471.9,2.63527012]
[1756933202794,0.002,4472.1,4472.0,4.2014]
[1756933203036,0.002,4472.1,4471.9,0.3991]
[1756933203201,0.002,4472.1,4472.0,3.71]
[1756933203536,0.002,4472.1,4472.0,4.43562411]
[1756933204531,0.002,4472.1,4472.0,4.72272411]
[1756933205391,0.002,4472.1,4472.0,4.43562411]
[1756933206004,0.002,4472.1,4472.0,0.72562411]
[1756933206209,0.002,4472.1,4472.0,3.71]
[1756933206410,0.002,4472.1,4472.0,3.9971]
[1756933208906,0.002,4472.1,4472.0,4.4885]
[1756933210305,0.002,4472.1,4472.0,0.7785]
[1756933210507,0.002,4472.1,4472.0,3.9961]
[1756933210739,0.002,4472.1,4472.0,5.24005518]
[1756933210940,0.002,4472.1,4472.0,3.9961]
[1756933211451,1.242,4472.1,4472.0,3.709]
[1756933211745,1.242,4472.1,4472.0,3.71]
[1756933212114,0.7445,4472.1,4472.0,3.71]
[1756933212314,0.002,4472.1,4472.0,3.71]
[1756933212514,0.002,4472.1,4472.0,3.9971]
[1756933213126,0.002,4472.1,4472.0,5.12303706]
[1756933213441,0.002,4472.1,4472.0,5.56603706]
[1756933213954,0.002,4472.1,4472.0,7.80217301]
[1756933214556,0.002,4472.1,4472.0,5.12303706]
[1756933214851,0.002,4472.1,4472.0,4.34553706]
[1756933216126,0.002,4472.1,4472.0,3.711]
[1756933216842,0.7445,4472.1,4472.0,3.71]
[1756933217046,0.002,4472.1,4472.0,3.71]
[1756933221823,0.7445,4472.1,4472.0,3.71]
[1756933224334,0.002,4472.1,4472.0,3.71]
[1756933225252,0.002,4472.1,4472.0,3.9971]
[1756933226857,0.002,4472.1,4472.0,6.23323595]
[1756933227057,0.002,4472.1,4472.0,7.45260424]
[1756933227461,0.002,4472.1,4472.0,7.89560424]
[1756933227863,0.002,4472.1,4472.0,7.45260424]
[1756933228263,0.002,4472.1,4472.0,7.89560424]
[1756933228768,0.002,4472.1,4472.0,7.45260424]
[1756933228949,0.002,4472.1,4472.0,11.70260424]
[1756933230589,0.002,4472.1,4472.0,12.14620424]
[1756933230865,0.002,4472.1,4472.0,8.8898171]
[1756933234372,0.002,4472.1,4472.0,8.8888171]
[1756933240240,1.2593,4472.1,4471.7,4.25]
[1756933240473,0.949,4472.0,4471.8,3.708]
[1756933240674,0.3083,4471.9,4471.8,3.708]
[1756933240865,1.2573,4471.9,4471.8,3.708]
[1756933241979,1.2573,4471.9,4471.8,3.711]
[1756933242179,1.2573,4471.9,4471.6,1.719]
[1756933242475,0.949,4471.8,4471.7,3.711]
[1756933242667,1.2573,4471.8,4471.7,3.711]
[1756933246078,1.2573,4471.8,4471.7,5.94728597]
[1756933246282,0.002,4472.1,4471.7,5.94728597]
[1756933246283,0.002,4472.1,4471.7,6.9377579]
[1756933246481,0.4686,4472.0,4471.7,6.9377579]
[1756933246783,0.002,4472.1,4471.8,2.23623412]
[1756933247079,0.4706,4472.1,4471.9,3.71]
[1756933247316,0.002,4472.1,4471.9,3.71]
[1756933247778,0.4706,4472.1,4471.9,3.71]
[1756933248768,0.7769,4472.0,4471.9,3.71]
[1756933249394,0.002,4472.1,4471.9,3.71]
[1756933249769,0.4706,4472.1,4471.9,3.71]
[1756933250086,0.7769,4472.0,4471.9,3.71]
[1756933250487,0.7769,4472.0,4471.9,3.822]
[1756933250891,1.2573,4472.0,4471.9,3.822]
[1756933256087,0.7769,4472.0,4471.9,3.822]
[1756933257306,0.7769,4472.0,4471.9,3.821]
[1756933257475,0.002,4472.1,4471.9,3.821]
[1756933257674,0.4706,4472.1,4471.9,3.821]
[1756933258611,0.4706,4472.1,4471.9,8.071]
[1756933261012,0.4706,4472.1,4472.0,0.30901035]
[1756933261013,0.002,4472.1,4472.0,0.30901035]
[1756933261217,0.002,4472.1,4472.0,0.2978]
[1756933263288,0.002,4472.1,4471.9,8.071]
[1756933263813,0.4542,4472.1,4471.9,8.071]
[1756933264018,0.2924,4472.0,4471.9,8.071]
[1756933265398,0.7446,4472.0,4471.9,8.071]
[1756933265620,0.2924,4472.0,4471.9,8.071]
[1756933270022,0.002,4472.1,4471.9,8.071]
[1756933270393,0.2924,4472.0,4471.9,4.362]
[1756933270593,0.2924,4472.0,4471.9,8.071]
[1756933271516,0.2924,4472.0,4471.9,9.79]
[1756933273126,0.7446,4472.0,4471.9,9.79]
[1756933276927,0.2924,4472.0,4471.9,9.79]
[1756933281102,0.7446,4472.0,4471.9,9.79]
[1756933282507,1.41677627,4472.0,4471.9,9.79]
[1756933283338,1.41877627,4472.0,4471.9,9.79]
[1756933283536,1.91557627,4472.0,4471.9,6.081]
[1756933283740,2.23626728,4471.8,4471.5,0.001]
[1756933284040,2.23633598,4471.6,4471.5,0.001]
[1756933284236,2.52873598,4471.6,4471.5,3.083]
[1756933284536,3.47773598,4471.6,4471.5,3.083]
[1756933284732,4.05810149,4471.6,4471.5,3.083]
[1756933288137,4.05810149,4471.6,4471.5,3.711]
[1756933292154,4.73049019,4471.6,4471.5,3.711]
[1756933293746,4.84249019,4471.6,4471.5,3.711]
[1756933300750,4.84449019,4471.6,4471.5,3.711]
[1756933305746,4.83659019,4471.6,4471.5,3.71]
[1756933313884,4.83659019,4471.6,4471.5,0.001]
[1756933314176,14.02966402,4471.6,4471.5,0.001]
[1756933314475,17.73866402,4471.6,4471.5,0.001]
[1756933317171,11.10129019,4471.6,4471.5,0.001]
[1756933317378,11.54559019,4471.6,4471.5,0.001]
[1756933317875,6.60309019,4471.6,4471.5,0.001]
[1756933318375,3.60309019,4471.6,4471.5,0.001]
[1756933318584,3.02272468,4471.6,4471.5,0.3093]
[1756933319248,3.02272468,4471.6,4471.5,0.001]
[1756933320363,3.02272468,4471.6,4471.5,0.2886]
[1756933321469,0.7863887,4471.6,4471.5,0.7398]
[1756933321982,3.02272468,4471.6,4471.5,0.2886]
[1756933328686,2.35033598,4471.6,4471.5,0.2886]
[1756933329254,2.35033598,4471.6,4471.5,0.001]
[1756933329583,2.63923598,4471.6,4471.5,0.001]
[1756933329781,2.63923598,4471.6,4471.5,3.711]
[1756933330155,2.63923598,4471.6,4471.5,0.001]
[1756933330357,2.63923598,4471.6,4471.5,3.711]
[1756933332990,3.08833598,4471.6,4471.5,3.711]
[1756933337114,4.85057405,4471.6,4471.5,3.711]
[1756933337410,4.85057405,4471.6,4471.5,3.611]
[1756933337759,2.236386,4471.5,4471.4,3.71]
[1756933337960,4.61426415,4471.5,4471.4,3.71]
[1756933338264,4.90316415,4471.5,4471.4,3.71]
[1756933338465,5.5756056,4471.5,4471.4,3.71]
[1756933340269,5.5756056,4471.5,4471.4,0.001]
[1756933340997,8.5756056,4471.5,4471.4,0.001]
[1756933341509,8.84960772,4471.5,4471.4,0.001]
[1756933342819,8.84960772,4471.5,4471.0,0.001]
[1756933342820,7.40014937,4471.1,4471.0,1e-08]
[1756933342979,2.23718651,4469.9,4469.8,1.745]
[1756933343175,2.23718651,4469.9,4469.8,5.455]
[1756933344106,2.52608651,4469.9,4469.8,1.745]
[1756933344303,5.97518651,4469.9,4469.8,1.745]
[1756933344803,11.61884981,4469.9,4469.8,0.025]
[1756933345010,12.22854644,4469.9,4469.8,0.025]
[1756933350817,11.74844644,4469.9,4469.8,0.025]
[1756933351031,10.68964981,4469.9,4469.8,0.025]
[1756933351380,10.68964981,4469.9,4469.8,0.026]
[1756933351628,11.15344981,4469.9,4469.8,0.026]
[1756933353718,11.15344981,4469.9,4467.6,0.67264499]
[1756933353719,5.23723656,4469.8,4467.6,0.67264499]
[1756933353882,2.23768712,4468.9,4468.6,0.4679]
[1756933354214,2.34968712,4468.9,4468.6,0.4679]
[1756933354419,2.34968712,4468.9,4468.8,0.3324]
[1756933354588,2.34968712,4468.9,4468.8,0.025]
[1756933356513,2.34968712,4468.9,4468.8,0.3324]
[1756933356914,2.34968712,4468.9,4468.8,0.8003]
[1756933357284,2.34968712,4468.9,4468.8,0.3324]
[1756933358117,2.34968712,4468.9,4468.8,0.8003]
[1756933358623,2.34968712,4468.9,4468.8,1.2416]
[1756933358797,2.34968712,4468.9,4468.8,0.8003]
[1756933360613,2.23768712,4468.9,4468.8,1.85116]
[1756933362821,2.23768712,4468.9,4468.8,5.58516]
[1756933363195,2.23768712,4468.9,4468.8,5.14386]
[1756933364225,2.23768712,4468.9,4468.8,4.67596]
[1756933364401,2.23768712,4468.9,4468.8,4.0664]
[1756933364725,3.01478712,4468.9,4468.8,0.025]
[1756933364888,3.48288712,4468.9,4468.8,0.025]
[1756933365293,3.01478712,4468.9,4468.8,0.025]
[1756933366094,3.48288712,4468.9,4468.8,0.025]
[1756933367000,3.01478712,4468.9,4468.8,0.025]
[1756933367394,3.48288712,4468.9,4468.8,0.025]
[1756933368711,3.48288712,4468.9,4468.8,0.026]
[1756933370305,3.01478712,4468.9,4468.8,0.026]
[1756933374437,3.01478712,4468.9,4468.8,3.758]
[1756933375425,3.01478712,4468.9,4468.8,3.757]
[1756933377941,3.48288712,4468.9,4468.8,3.757]
[1756933379840,3.01478712,4468.9,4468.8,3.757]
[1756933381344,3.01478712,4468.9,4468.8,3.756]
[1756933382844,2.55098712,4468.9,4468.8,3.756]
[1756933383044,3.00988712,4468.9,4468.8,3.756]
[1756933385846,2.23768712,4468.9,4468.8,3.756]
[1756933386851,2.23768712,4468.9,4468.8,0.026]
[1756933387023,2.23768712,4468.9,4468.8,3.754]
[1756933388424,2.23768712,4468.9,4468.8,4.06]
[1756933388620,2.23763705,4469.0,4468.8,4.5346]
[1756933389520,0.114,4469.1,4468.8,4.5346]
[1756933389720,2.23763705,4469.0,4468.8,4.5346]
[1756933390658,2.23768712,4468.9,4468.8,4.5346]
[1756933392423,0.114,4469.1,4468.8,5.21522]
[1756933392634,2.23767795,4469.0,4468.9,0.4746]
[1756933392955,2.23767795,4469.0,4468.9,0.7806]
[1756933395151,0.002,4469.1,4468.9,1.2202]
[1756933395350,0.002,4469.1,4469.0,3.727]
[1756933395549,0.002,4469.1,4469.0,5.87907742]
[1756933395759,0.002,4469.1,4469.0,6.18507742]
[1756933397162,0.002,4469.1,4469.0,5.27087742]
[1756933397364,0.002,4469.1,4469.0,4.033]
[1756933398546,0.002,4469.1,4469.0,4.9472]
[1756933398934,0.002,4469.1,4469.0,3.727]
[1756933399143,0.002,4469.1,4469.0,4.033]
[1756933401036,0.002,4469.1,4469.0,8.283]
[1756933401545,0.002,4469.1,4469.0,9.99547819]
[1756933401747,0.002,4469.1,4469.0,10.43507819]
[1756933402668,0.002,4469.1,4469.0,9.99547819]
[1756933404729,0.002,4469.1,4469.0,9.52087819]
[1756933404930,0.002,4469.1,4469.0,8.283]
[1756933405241,0.002,4469.1,4469.0,8.284]
[1756933407155,0.002,4469.1,4469.0,4.034]
[1756933408890,0.002,4469.1,4469.0,4.5086]
[1756933411191,0.002,4469.1,4469.0,4.034]
[1756933411902,0.002,4469.1,4469.0,4.5303]
[1756933412395,0.002,4469.1,4469.0,4.034]
[1756933412979,0.002,4469.1,4469.0,8.284]
[1756933417891,0.002,4469.1,4469.0,8.7803]
[1756933418593,0.002,4469.1,4469.0,8.284]
[1756933418796,0.002,4469.1,4469.0,8.7803]
[1756933418990,0.002,4469.1,4469.0,8.284]
[1756933423697,0.002,4469.1,4469.0,7.978]
[1756933426506,0.002,4469.1,4469.0,8.2753]
[1756933428299,0.002,4469.1,4469.0,7.978]
[1756933432610,0.002,4469.1,4469.0,8.2753]
[1756933433108,0.002,4469.1,4469.0,7.978]
[1756933441203,0.002,4469.1,4469.0,9.698]
[1756933442913,0.002,4469.1,4469.0,15.1771054]
[1756933443212,0.002,4469.1,4469.0,15.84962523]
[1756933444284,0.002,4469.1,4469.0,18.84962523]
[1756933446327,0.002,4469.1,4469.0,14.59962523]
[1756933447112,1e-08,4469.6,4469.5,3.02938673]
[1756933447425,0.002,4470.0,4469.9,3.02918651]
[1756933447718,0.002,4470.0,4469.9,17.38082262]
[1756933447924,0.002,4470.0,4469.9,18.31148651]
[1756933448718,0.002,4470.0,4469.9,18.40112648]
[1756933448926,0.002,4470.0,4469.9,20.46496496]
[1756933449889,0.002,4470.0,4469.9,20.40653781]
[1756933452531,0.002,4470.0,4469.9,24.65653781]
[1756933452895,0.002,4470.0,4469.9,24.76853781]
[1756933455904,0.002,4470.0,4469.9,24.32193781]
[1756933458134,0.002,4470.0,4469.9,21.32193781]
[1756933458336,0.002,4470.0,4469.9,24.32193781]
[1756933461640,0.002,4470.0,4469.9,21.32193781]
[1756933462248,0.002,4470.0,4469.9,23.82663781]
[1756933463353,0.4733,4470.5,4470.4,2.23693629]
[1756933463532,0.4733,4470.5,4470.4,7.69733356]
[1756933463729,0.4733,4470.5,4470.4,10.69733356]
[1756933463730,0.7888,4470.5,4470.4,10.69733356]
[1756933464052,0.7888,4470.5,4470.4,11.17963356]
[1756933464550,0.7888,4470.5,4470.4,11.29163356]
[1756933464755,1.2461,4470.5,4470.4,11.29163356]
[1756933469227,1.2461,4470.5,4470.4,15.53963356]
[1756933470163,0.7888,4470.5,4470.4,15.53963356]
[1756933472627,0.002,4470.5,4470.4,15.53963356]
[1756933474551,0.2972,4470.5,4470.4,15.53963356]
[1756933475263,0.7277,4470.5,4470.4,15.53963356]
[1756933478457,0.002,4470.5,4470.4,15.53963356]
[1756933480944,0.2972,4470.5,4470.4,15.53963356]
[1756933481159,0.7277,4470.5,4470.4,15.53963356]
[1756933482339,1.2081,4470.5,4470.4,7.07923629]
[1756933482540,1.2081,4470.5,4470.4,6.06393629]
[1756933493291,1.2081,4470.5,4470.4,10.31193629]
[1756933496289,1.2081,4470.5,4470.4,10.30993629]
[1756933497455,0.7776,4470.5,4470.4,10.30993629]
[1756933497655,1.2081,4470.5,4470.4,10.30993629]
[1756933499600,2.23708641,4470.1,4470.0,0.001]
[1756933499778,2.23728661,4469.7,4469.6,0.001]
[1756933500118,2.65708661,4469.7,4469.6,0.001]
[1756933500467,3.57328661,4469.7,4469.6,0.001]
[1756933500663,4.22160129,4469.7,4469.6,0.001]
[1756933500992,4.24956737,4469.7,4469.6,0.001]
[1756933501211,4.22160129,4469.7,4469.6,0.001]
[1756933501368,4.24956737,4469.7,4469.6,0.001]
[1756933505106,4.22160129,4469.7,4469.6,0.001]
[1756933505471,4.24956737,4469.7,4469.6,0.001]
[1756933520888,7.96956737,4469.7,4469.6,0.001]
[1756933521088,7.94160129,4469.7,4469.6,0.001]
[1756933523898,10.94160129,4469.7,4469.6,0.001]
[1756933526620,6.30540129,4469.7,4469.6,0.001]
[1756933526816,10.94160129,4469.7,4469.6,0.001]
[1756933527518,10.02540129,4469.7,4469.6,0.001]
[1756933527714,10.48760129,4469.7,4469.6,0.001]
[1756933528632,10.94160129,4469.7,4469.6,0.001]
[1756933535009,5.99760129,4469.7,4469.6,0.001]
[1756933535210,9.71860129,4469.7,4469.6,0.2881]
[1756933538639,5.99760129,4469.7,4469.6,0.2881]
[1756933538808,6.06928661,4469.7,4469.6,0.7834]
[1756933539136,6.06928661,4469.7,4469.6,1.2111]
[1756933539526,6.06928661,4469.7,4469.6,0.7834]
[1756933544736,2.34928661,4469.7,4469.6,0.7834]
[1756933547925,2.34928661,4469.7,4469.6,0.2881]
[1756933555029,4.3926661,4469.8,4469.6,1.2111]
[1756933555030,2.34924864,4469.8,4469.6,1.2111]
[1756933555228,2.34924864,4469.8,4469.7,0.4953]
[1756933555434,2.34924864,4469.8,4469.7,0.7824]
[1756933556536,2.23724864,4469.8,4469.7,0.7824]
[1756933556733,2.23438071,4469.8,4469.7,0.7824]
[1756933558214,0.02796483,4469.9,4469.7,0.2871]
[1756933558418,0.002,4470.0,4469.8,0.923]
[1756933558744,0.002,4470.0,4469.9,0.7824]
[1756933558947,2.23913646,4470.0,4469.9,0.7824]
[1756933559543,0.002,4470.0,4469.9,0.7824]
[1756933560315,2.23913646,4470.0,4469.9,0.7824]
[1756933560720,0.002,4470.0,4469.9,0.7824]
[1756933561150,2.23913646,4470.0,4469.9,0.7824]
[1756933561529,0.002,4470.0,4469.9,0.7824]
[1756933561741,2.23913646,4470.0,4469.9,0.7824]
[1756933562755,2.23913646,4470.0,4469.9,0.2871]
[1756933563629,0.002,4470.0,4469.9,0.2871]
[1756933564761,2.23913646,4470.0,4469.9,0.2871]
[1756933565127,0.002,4470.0,4469.9,0.2871]
[1756933565761,2.23913646,4470.0,4469.9,0.2871]
[1756933567439,0.002,4470.0,4469.9,0.2871]
[1756933569568,2.23913646,4470.0,4469.9,0.2871]
[1756933569860,2.23913646,4470.0,4469.6,0.4687]
[1756933569861,2.23719335,4469.9,4469.6,0.4687]
[1756933570067,2.23719335,4469.9,4469.6,0.99633]
[1756933570364,2.23719335,4469.9,4469.8,0.2927]
[1756933571268,2.23726781,4469.8,4469.6,0.001]
[1756933571564,2.23719156,4469.9,4469.6,0.001]
[1756933571957,2.23719156,4469.9,4469.6,3.717]
[1756933572470,2.23719156,4469.9,4469.6,0.001]
[1756933578539,2.69729156,4469.9,4469.6,0.001]
[1756933579079,2.23719156,4469.9,4469.6,0.001]
[1756933579260,2.69734643,4469.8,4469.6,0.001]
[1756933582280,2.23724643,4469.8,4469.6,0.001]
[1756933585281,0.002,4470.0,4469.7,0.2927]
[1756933585485,0.002,4470.0,4469.7,0.8724]
[1756933588289,0.002,4470.0,4469.8,3.716]
[1756933590785,0.002,4470.0,4469.9,1.2285]
[1756933590990,0.002,4470.0,4469.9,7.26708651]
[1756933591170,0.002,4470.0,4469.9,9.25732201]
[1756933592161,0.002,4470.0,4469.9,8.81072201]
[1756933592362,0.002,4470.0,4469.9,6.5735355]
[1756933592592,0.002,4470.0,4469.9,8.31952201]
[1756933600073,0.002,4470.0,4469.9,5.80132201]
[1756933600277,0.002,4470.0,4469.9,10.04932201]
[1756933600478,0.002,4470.0,4469.9,10.13896821]
[1756933602611,0.002,4470.0,4469.9,8.89096821]
[1756933604314,0.002,4470.0,4469.9,12.60596821]
[1756933608810,0.002,4470.0,4469.9,16.85396821]
[1756933610218,0.002,4470.0,4469.9,16.96596821]
[1756933612414,0.002,4470.0,4469.9,11.52116821]
[1756933612590,0.002,4470.0,4469.9,14.94446821]
[1756933612912,0.002,4470.0,4469.9,16.02716821]
[1756933613214,0.002,4470.0,4469.9,15.23516821]
[1756933613589,0.3113,4470.0,4469.9,14.94446821]
[1756933613789,0.7543,4470.0,4469.9,14.94446821]
[1756933613986,0.7543,4470.0,4469.9,15.73646821]
[1756933622526,0.3113,4470.0,4469.9,15.73646821]
[1756933622834,1.2703,4470.0,4469.9,0.112]
[1756933622990,1.2703,4470.0,4469.9,3.826]
[1756933626321,1.94283943,4470.0,4469.9,3.714]
[1756933626520,4.37705619,4470.0,4469.9,3.714]
[1756933626727,2.23718651,4469.9,4469.8,0.001]
[1756933627038,2.23718651,4469.9,4469.8,3.715]
[1756933627230,2.54998651,4469.9,4469.8,3.715]